Cogmind - Beta 10.1 @@@ ROGUE MODE // 2020.09.27 @ 18:39:18 Player: Decinym Result: Destroyed by 8R-AWN with 8R-AWN's Boregun Performance ------------- Evolutions (0) 0 Regions Visited (3) 600 Robots Destroyed (13) 65 Value Destroyed (281) 281 Prototype IDs (23) 460 Alien Tech Used (0) 0 Bonus (300) 300 TOTAL SCORE: 1706 Bonus ------- Aligned with FarCom 300 Cogmind --------- Core Integrity 0/250 Matter 300/300 Energy 73/100 System Corruption 0% Temperature Cool (18) Movement Walking (180) Ox2 Location -10/Exiles Parts ------- > --- POWER (1) -------- (None) > --- PROPULSION (2) --- Aluminum Leg Aluminum Leg > --- UTILITY (2) ------ Medium Storage Unit High-capacity Storage Unit > --- WEAPON (2) ------- EM Pulse Cannon > --- INVENTORY (16) --- Light Nuclear Core Reinforced Deuterium Engine Light Angular Momentum Engine Light Treads Aluminum Leg Carbon-fiber Leg Carbon-fiber Leg Improved Heat Sink Advanced Weight Redist. System Advanced Terrain Scanner Improved Terrain Scan Processor Light Assault Rifle Light Assault Rifle Peak State ------------ > --- POWER ------------ Ion Engine > --- PROPULSION ------- Aluminum Leg Aluminum Leg > --- UTILITY ---------- Medium Storage Unit High-capacity Storage Unit > --- WEAPON ----------- EM Pulse Cannon Beam Cannon > --- INVENTORY -------- Light Nuclear Core Reinforced Deuterium Engine Light Angular Momentum Engine Light Treads Aluminum Leg Carbon-fiber Leg Carbon-fiber Leg Improved Heat Sink Advanced Weight Redist. System Advanced Terrain Scanner Improved Terrain Scan Processor Light Assault Rifle Light Assault Rifle [Rating: 12] Favorites ----------- Power Ion Engine Engine Ion Engine Propulsion Aluminum Leg Treads Light Treads Leg Aluminum Leg Utility High-capacity Storage Unit Storage High-capacity Storage Unit Weapon Beam Cannon Energy Gun Particle Gun Energy Cannon Beam Cannon Ballistic Gun Light Assault Rifle Build | -11 -10 -10 -10 ------- Run | Scr Mat Min Exi Slots Evolved . | . . . . Power . | . . . . Propulsion . | . . . . Utility . | . . . . Weapon . | . . . . Parts Attached 13 | . 6 4 3 Power . | . . . . Engine . | . . . . Core . | . . . . Reactor . | . . . . Propulsion 4 | . 2 2 . Treads 2 | . 2 . . Leg 2 | . . 2 . Wheel . | . . . . Hover . | . . . . Flight . | . . . . Utility 2 | . 1 1 . Device . | . . . . Storage 2 | . 1 1 . Processor . | . . . . Hackware . | . . . . Protection . | . . . . Artifact . | . . . . Weapon 7 | . 3 1 3 Energy Gun 1 | . 1 . . Energy Cannon 3 | . 1 . 2 Ballistic Gun 3 | . 1 1 1 Ballistic Cannon . | . . . . Launcher . | . . . . Special Weapon . | . . . . Impact Weapon . | . . . . Slashing Weapon . | . . . . Piercing Weapon . | . . . . Special Melee Weapon . | . . . . Unidentified Prototypes . | . . . . Parts Lost 7 | . 2 2 3 Power 1 | . . . 1 Propulsion 1 | . . 1 . Utility . | . . . . Weapon 5 | . 2 1 2 Highest Loss Streak 2 | . 2 2 2 Average Slot Usage (%) 98 | . 92 99 99 Engine 13 | . 14 14 13 Treads 11 | . 21 18 . Leg 16 | . 6 8 28 Storage 27 | . 24 28 28 Energy Gun 5 | . 14 8 . Energy Cannon 14 | . 3 14 17 Ballistic Gun 7 | . 7 5 9 Naked Turns . | . . . . Heaviest Build 54 | 11 47 49 54 Greatest Support 40 | 20 40 40 20 Greatest Overweight (x) 2 | . 1 2 2 Average Overweight (x) 1 | . . 1 2 Largest Inventory Capacity 16 | . 14 16 16 Average Capacity 14 | . 12 14 16 Most Carried 16 | . 9 16 16 Average Carried 13 | . 6 13 15 Final Capacity 16 | 6 14 16 16 Final Carried 16 | 6 9 16 13 Class Distribution -------------------- 100% | Mutant Dominant Class ---------------- Mutant | -10/Materials Mutant | -10/Mines Mutant | -10/Exiles Resources | -11 -10 -10 -10 ----------- Run | Scr Mat Min Exi Matter Collected 331 | 173 69 66 23 Remotely . | . . . . Salvage Created 379 | . 154 202 23 Parts 19 | . 11 8 . Haulers Intercepted . | . . . . Recyclers Shooed . | . . . . Parts Field Recycled . | . . . . Retrieved Matter . | . . . . Parts Self-Destructed . | . . . . Prevented . | . . . . Kills | -11 -10 -10 -10 ------- Run | Scr Mat Min Exi Combat Hostiles Destroyed 10 | . 3 5 2 Guns 5 | . 3 2 . Cannons 5 | . . 3 2 Classes Destroyed 5 | . 2 2 1 Worker 2 | . . 2 . Operator 1 | . 1 . . Swarmer 2 | . . 2 . Grunt 6 | . 3 3 . Assembled 2 | . . . 2 Best Kill Streak 2 | . 1 2 2 Combat Bots Only 2 | . 1 2 2 Max Kills in Single Turn 1 | . 1 1 1 Gunslinging . | . . . . Exploded . | . . . . Melee . | . . . . Uniques/NPCs Destroyed . | . . . . Combat | -11 -10 -10 -10 -------- Run | Scr Mat Min Exi Damage Taken 1032 | . 242 224 566 Core 264 | . 31 42 191 Absorbed by Shields . | . . . . Core Remaining (%) 100 | 100 . . . Volleys Fired 57 | . 18 23 16 Largest 2 | . 2 2 2 Hottest 125 | . 85 125 123 Shots Fired 96 | . 26 44 26 Gun 52 | . 26 21 5 Cannon 44 | . . 23 21 Launcher . | . . . . Special . | . . . . Kinetic 28 | . 14 9 5 Thermal 59 | . 12 35 12 Explosive . | . . . . Electromagnetic 9 | . . . 9 Robot Hit Streak 7 | . 7 5 7 Robot Miss Streak 3 | . 3 3 2 Penetration Max . | . . . . Secondary Targets . | . . . . Shots Hit Robots 58 | . 17 25 16 Core Hits 24 | . 9 11 4 Critical Hits . | . . . . Critical Kills . | . . . . Critical Parts Destroyed . | . . . . Melee Attacks . | . . . . Impact . | . . . . Slashing . | . . . . Piercing . | . . . . Sneak Attacks . | . . . . Combat Hostiles . | . . . . Follow-up Attacks . | . . . . Damage Inflicted 587 | . 140 345 102 Guns 325 | . 140 170 15 Cannons 262 | . . 175 87 Explosions . | . . . . Melee . | . . . . Ramming . | . . . . Kinetic 102 | . 53 34 15 Thermal 471 | . 87 311 73 Explosive . | . . . . Electromagnetic 14 | . . . 14 Impact . | . . . . Slashing . | . . . . Piercing . | . . . . Highest Corruption . | . . . . Average Corruption . | . . . . Corruption Purged . | . . . . Overload Shots . | . . . . Overflow Damage . | . . . . Projectiles . | . . . . Explosions . | . . . . Melee . | . . . . Knockbacks . | . . . . Impact . | . . . . Kinetic . | . . . . Secondary . | . . . . Self-Inflicted Damage . | . . . . Shots . | . . . . Rammed . | . . . . Targets Rammed . | . . . . Kicked . | . . . . Crushed . | . . . . Highest Temperature 333 | . 129 333 299 Average Temperature 119 | . 60 133 132 Received Heat Transfer 228 | . 129 99 . Siege Activations . | . . . . Robots Corrupted . | . . . . Combat Hostiles . | . . . . Parts Fried . | . . . . Impact Corruptions . | . . . . Robots Melted . | . . . . Combat Hostiles . | . . . . Parts Melted 1 | . . 1 . Heat Transferred 1069 | . 200 703 166 Parts Sabotaged . | . . . . Parts Stolen . | . . . . Parts Stripped . | . . . . Power Chain Reactions . | . . . . Missiles Intercepted . | . . . . Alert | -11 -10 -10 -10 ------- Run | Scr Mat Min Exi Peak Influence 63 | . 63 60 . Initial 24 | . . 24 . Average 30 | . 39 28 . Maximum Alert Level . | . . . . Low Security (%) 100 | . 100 100 . Level 1 . | . . . . Level 2 . | . . . . Level 3 . | . . . . Level 4 . | . . . . Level 5 . | . . . . High Security . | . . . . Max Security . | . . . . Squads Dispatched 2 | . 1 1 . Investigation 1 | . . 1 . Extermination . | . . . . Reinforcement 1 | . 1 . . Assault . | . . . . Garrison . | . . . . Intercept . | . . . . Construction Impeded . | . . . . Haulers Reinforced . | . . . . Stealth | -11 -10 -10 -10 --------- Run | Scr Mat Min Exi Distress Signals . | . . . . Communications Jammed . | . . . . Distress Signals . | . . . . Times Spotted 16 | . 5 6 5 Peak Tracking Total 9 | . 2 2 9 Tactical Retreats 2 | . 1 1 . Traps | -11 -10 -10 -10 ------- Run | Scr Mat Min Exi Traps Triggered . | . . . . Indirectly . | . . . . Trap Hack Attempts . | . . . . Triggered . | . . . . Disarmed . | . . . . Reprogrammed . | . . . . Reused 3 | . . . 3 Traps Extracted . | . . . . Installed 3 | . . . 3 Triggered . | . . . . Exploded 2 | . . . 2 Machines | -11 -10 -10 -10 ---------- Run | Scr Mat Min Exi Machines Disabled 1 | . . . 1 Max in Single Turn 1 | . . . 1 Machines Sabotaged . | . . . . Garrisons Compromised . | . . . . Overloaded Fab Kills . | . . . . Fab Network Shutdowns . | . . . . Hacking | -11 -10 -10 -10 --------- Run | Scr Mat Min Exi Machines Accessed 4 | . 1 1 2 Terminals 1 | . 1 . . Fabricators . | . . . . Repair Stations . | . . . . Recycling Units . | . . . . Scanalyzers . | . . . . Garrison Access . | . . . . Total Hacks 9 | . 2 1 6 Successful 8 | . 1 1 6 Failed 1 | . 1 . . Catastrophic . | . . . . Database Lockouts . | . . . . Manual 3 | . 2 . 1 Terminals 2 | . 2 . . Fabricators . | . . . . Repair Stations . | . . . . Recycling Units . | . . . . Scanalyzers . | . . . . Garrison Access . | . . . . Terminal Hacks 8 | . 1 1 6 Record 5 | . . . 5 Open Door 1 | . . 1 . Branch Access Points 1 | . 1 . . EX-Prototype ID Bank 1 | . . . 1 Fabricator Hacks . | . . . . Repair Station Hacks . | . . . . Recycling Unit Hacks . | . . . . Scanalyzer . | . . . . Garrison Access Hacks . | . . . . Unauthorized Hacks . | . . . . Terminals . | . . . . Fabricators . | . . . . Repair Stations . | . . . . Recycling Units . | . . . . Scanalyzers . | . . . . Garrison Access . | . . . . Data Cores Recovered . | . . . . Used . | . . . . Hacking Detections 1 | . 1 . . Full Trace Events . | . . . . Feedback Events . | . . . . Feedback Blocked . | . . . . Robot Schematics Acquired . | . . . . Robots Built . | . . . . Matter . | . . . . Time . | . . . . Total Robot Build Rating . | . . . . Part Schematics Acquired . | . . . . Parts Built . | . . . . Matter . | . . . . Time . | . . . . Total Part Build Rating . | . . . . Parts Repaired . | . . . . Time . | . . . . Parts Recycled . | . . . . Recycled Matter . | . . . . Retrieved Matter . | . . . . Retrieved Components . | . . . . Parts Scanalyzed . | . . . . Part Schematics Acquired . | . . . . Parts Damaged . | . . . . Bothacking | -11 -10 -10 -10 ------------ Run | Scr Mat Min Exi Used RIF Installer . | . . . . Robots Hacked . | . . . . Non-combat . | . . . . Combat . | . . . . Robot Hacks Applied . | . . . . Relay Couplers Released . | . . . . Robots Rewired . | . . . . Allies Hacked . | . . . . Hacks Repelled . | . . . . Allies | -11 -10 -10 -10 -------- Run | Scr Mat Min Exi Total Allies . | . . . . Largest Group . | . . . . Highest-Rated Group . | . . . . Highest-Rated Ally . | . . . . Total Orders . | . . . . Ally Attacks . | . . . . Total Damage . | . . . . Kills . | . . . . Allies Corrupted . | . . . . Allies Melted . | . . . . Intel | -11 -10 -10 -10 ------- Run | Scr Mat Min Exi Robot Analysis Total . | . . . . Derelict Logs Recovered 2 | . . 2 . Drone Launches . | . . . . Drone Recoveries . | . . . . Exploration | -11 -10 -10 -10 ------------- Run | Scr Mat Min Exi Turns Passed 2734 | . 236 1382 1116 Spaces Moved 1392 | 1 116 693 582 Core . | . . . . Treads 522 | . 74 448 . Legs 870 | 1 42 245 582 Wheels . | . . . . Hover . | . . . . Flight . | . . . . Fastest Speed 120 | 120 120 180 180 Average Speed 178 | 120 158 180 180 Slowest Speed 200 | 120 180 200 180 Overloaded Moves . | . . . . Propulsion Burnouts . | . . . . Robots Hopped . | . . . . Cave-ins Triggered . | . . . . Exploration Rate (%) 44 | 1 24 96 58 Regions Visited 3 Branch Regions 2 Pre-discovered Areas 2 | . . 1 1 Known Exits Taken 1 | . 1 . . Unknown Exits Taken 2 | 1 . 1 . Scrap Searched 2 | . . 2 . Spaces Dug . | . . . . Terrain Destroyed . | . . . . Melee . | . . . . Projectile . | . . . . AOE . | . . . . Terrain Rammed . | . . . . Walls Destroyed . | . . . . Machines Disabled . | . . . . Actions | -11 -10 -10 -10 --------- Run | Scr Mat Min Exi Total 1556 | . 144 785 627 Wait 61 | . . 50 11 Move 1389 | . 115 692 582 Hop . | . . . . Pick Up 20 | . 4 11 5 Fast Attach 4 | . 2 2 . Attach 3 | . 2 . 1 Detach 1 | . 1 . . Swap 6 | . 2 2 2 Drop 12 | . . 5 7 Fire 57 | . 18 23 16 Melee . | . . . . Ram . | . . . . Kick . | . . . . Crush . | . . . . Escape Stasis . | . . . . Rewire . | . . . . Trap 3 | . . . 3 Miscellaneous . | . . . . Route ------- -11/Scrapyard -10/Materials (discovered 2 exits: *Min x2) -10/Mines (discovered 3 exits: [*Mat x2] / *Exi) -10/Exiles History --------- Turn | Location | Event 1 | -11/Scrapyard | Discovered new exit (range 0) 1 | -11/Scrapyard | Entered Materials 33 | -10/Materials | Identified exit to Mines 237 | -10/Materials | Entered Mines 300 | -10/Mines | Build established: Mutant 450 | -10/Mines | Met a Derelict shopkeep closing up shop 728 | -10/Mines | Learned location of Storage (-9) 995 | -10/Mines | Discovered new exit (range 5) 1024 | -10/Mines | Learned location of 1 exit from Materials 1040 | -10/Mines | Found a hidden stash of uninstalled traps 1198 | -10/Mines | Discovered new exit (range 10) 1252 | -10/Mines | Deemed a non-threat by the Exiles lab entrance 1252 | -10/Mines | Discovered new exit (range 5) 1619 | -10/Mines | Entered Exiles 1661 | -10/Exiles | Met 8R-AWN 1691 | -10/Exiles | Met EX-HEX 1754 | -10/Exiles | Met EX-BIN 1780 | -10/Exiles | Aligned with FarCom system 1781 | -10/Exiles | Given EX-Vault access code 1823 | -10/Exiles | Opened EX-Vault 1864 | -10/Exiles | Warned to stay clear of 0b10 Research branches 2528 | -10/Exiles | Met EX-DEC 2540 | -10/Exiles | Learned location of Zion (-7) 2630 | -10/Exiles | Attacked by the Exiles 2666 | -10/Exiles | Core integrity fell below 50% 2717 | -10/Exiles | Core integrity fell below 20% 2735 | -10/Exiles | Destroyed by 8R-AWN with 8R-AWN's Boregun Last Messages --------------- 02723_ HV Slug penetrates Earth. 02723_ Penetrated by HV Slug. 02723_ HV Slug penetrates Earth. 02726_ Penetrated by HV Slug. 02726_ HV Slug penetrates Wall. 02726_ Penetrated by HV Slug. 02726_ HV Slug penetrates Wall. 02728_ Penetrated by HV Slug. 02728_ Ion Engine destroyed. 02728_ HV Slug penetrates Earth. 02728_ HV Slug penetrates HEX's Workstation. 02730_ Penetrated by HV Slug. 02730_ HV Slug penetrates Earth. 02730_ Penetrated by HV Slug. 02730_ HV Slug penetrates Earth. 02732_ Penetrated by HV Slug. 02732_ HV Slug penetrates Earth. 02735_ Penetrated by HV Slug. 02735_ HV Slug penetrates Earth. 02735_ Penetrated by HV Slug. Map ----- +----------------------------------------------------+ | | | | | | | | | | | | | | | | | | | | | ????????#########????????????????????????????????? | | ????????#= !#????????????????????????????????? | | ????????#= #????????????????????????????????? | | ????????# ! #????????????????????????????????? | | ????????# X#????????????????????????????????? | | ????????## #?????????????????????????????????? | | ????????#X #?????????????????????????????????? | | ????????## #?????????????????????????????????? | | ?????????# #?????????????????????????????????? | | ?????????# #########?????????????????????????? | | ?????????# ##""" ""#?????????????????????????? | | ?????????# ## "#?????????????????????????? | | ?????????# g "#?????????????????????????? | | ?????????# "; "####??????????????????????? | | ???####??# %""" ; #####??????????????????? | | ???"""""?# %"######"# @ #??????????????????? | | ??"""" ## ????###### ##??????????????????? | | ?#""X" "#????????????#???????????????????? | | ?#" " ????????????????????????????????? | | ?#" ## %"#????????????????????????????????? | | ?#""""""?# ###########???????????????????????? | | ??#"###??# #?#"""""""#???????????????????????? | | ?????????# #?#"""""""#???????????????????????? | | ?????????# #?#"""""""#???????????????????????? | | ????????## ###"" """"#???????????????????????? | | ????????#" """"#???????????????????????? | | ????????#" """#???????????????????????? | | ????????#" """#???????????????????????? | | ????????#" """#???????????????????????? | | ????????#" """#???????????????????????? | | ????????#" """#???????????????????????? | | ????????## """"???????????????????????? | | ?????????# """#???????????????????????? | | ?????????#" "X" """"???????????????????????? | | #????????#" """ #???????????????????????? | | ?????????#" """""""""#???????????????????????? | | ????????##" ###########???????????????????????? | | ???????##"" #?????????????????????????????????? | | #?######"" #?????????????????????????????????? | | ###""""""" ##????????????????????????????????? | +----------------------------------------------------+ Best States ------------- Heat Dissipation 25 Energy Generation 10 Energy Capacity 250 Matter Stores 300 Matter Capacity 300 Sight Range 16 Terrain Scan Density 10 Evasion (%) 40 Recoil Reduction 2 Item Schematics ----------------- None Robot Schematics ------------------ None Fabricated ------------ Nothing Alien Tech Used ----------------- None Achievements -------------- None Challenges ------------ None Game ------ Seed MyomerCentriumDeconstructor Manual? 0 Play Time 00:17:22 Cumulative 342.4 hours Start 2020.09.27 @ 18:23:25 End 2020.09.27 @ 18:39:18 Sessions 1 Manual Loads 0 Difficulty Rogue Special Mode None Game No. 372 Rogue 372 Adventurer 0 Explorer 0 Win Type - Total 30 Types 17/4/2/1/2/1/3/0/0 Lore% 93 Gallery% 89 Achievement% 79 Wizard Run 0 Options --------- ASCII 0 Keyboard 0 Movement Arrows Keybinds 0 Fullscreen 2 Font 18/SmallcapsGlow Map View 76x50 Tactical HUD 1 Map Filters NONE Filters NONE Steam 1 RUN: 24d4b1dc-18f4-41f8-850b-05d8066faec3